Cogmind - Beta 13 @@@ ROGUE MODE // 2024.02.27 @ 02:21:03 Player: CatPlusPlus Result: Destroyed by NI-FHW(R) with Subdweller Beam Cannon Performance ------------- Evolutions (0) 0 Regions Visited (3) 600 Robots Destroyed (48) 240 Value Destroyed (610) 610 Prototype IDs (5) 100 Alien Tech Used (0) 0 Bonus (-146) -146 TOTAL SCORE: 1404 Bonus ------- Friendly Fire -146 Cogmind --------- Core Integrity 0/250 Matter 283/300 Energy 77/100 System Corruption 0% Temperature Cool (9) Movement Treading (480) Ox4 Location -10/Subcaves Parts ------- > --- POWER (1) -------- (None) > --- PROPULSION (2) --- Light Treads Compact Wheel > --- UTILITY (2) ------ Huge Storage Unit Tractor Beam > --- WEAPON (2) ------- Medium Laser Light Assault Rifle > --- INVENTORY (25) --- Ion Engine Light Ion Engine Light Treads Light Treads Light Treads Compact Wheel Improved Heat Sink Medium Storage Unit High-capacity Storage Unit Medium Battery (150) Structural Scanner Machine Analyzer Signal Interpreter Signal Interpreter ECM Suite Tractor Beam Thief Drone Bay (3/3) EM Pulse Gun Light Assault Rifle Light Assault Rifle Mining Laser Mining Claw Peak State ------------ > --- POWER ------------ Ion Engine > --- PROPULSION ------- Light Treads Compact Wheel > --- UTILITY ---------- Huge Storage Unit Thief Drone Bay > --- WEAPON ----------- Light Cannon Mining Claw > --- INVENTORY -------- Light Ion Engine Light Ion Engine Light Treads Light Treads Light Treads Light Treads Compact Wheel Flight Unit Medium Storage Unit High-capacity Storage Unit Medium Battery Structural Scanner Machine Analyzer Signal Interpreter Signal Interpreter ECM Suite Tractor Beam EM Pulse Gun Medium Laser Light Assault Rifle Light Assault Rifle Light Assault Rifle Light Assault Rifle Mining Laser [Rating: 15] Favorites ----------- Power Ion Engine Engine Ion Engine Propulsion Light Treads Treads Light Treads Leg Aluminum Leg Wheel Compact Wheel Utility Structural Scanner Device Structural Scanner Storage Huge Storage Unit Weapon Light Cannon Energy Gun Small Laser Ballistic Gun Assault Rifle Ballistic Cannon Light Cannon Special Weapon Mining Laser Slashing Weapon Mining Claw Build | -11 -10 -10 -10 ------- Run | Yrd Mat Min Sub Slots Evolved . | . . . . Power . | . . . . Propulsion . | . . . . Utility . | . . . . Weapon . | . . . . Parts Attached 34 | . 19 11 4 Power 4 | . 2 2 . Engine 4 | . 2 2 . Core . | . . . . Reactor . | . . . . Propulsion 9 | . 7 1 1 Treads 3 | . 2 . 1 Leg 4 | . 4 . . Wheel 2 | . 1 1 . Hover . | . . . . Flight . | . . . . Utility 7 | . 3 3 1 Device 5 | . 1 3 1 Storage 2 | . 2 . . Processor . | . . . . Hackware . | . . . . Protection . | . . . . Artifact . | . . . . Weapon 14 | . 7 5 2 Energy Gun 3 | . 2 . 1 Energy Cannon . | . . . . Ballistic Gun 3 | . 1 1 1 Ballistic Cannon 4 | . 2 2 . Launcher . | . . . . Special Weapon 1 | . . 1 . Impact Weapon . | . . . . Slashing Weapon 3 | . 2 1 . Piercing Weapon . | . . . . Special Melee Weapon . | . . . . Unidentified Prototypes 1 | . . 1 . Parts Lost 8 | . 1 3 4 Power 2 | . . 1 1 Propulsion 3 | . 1 1 1 Utility . | . . . . Weapon 3 | . . 1 2 Highest Loss Streak 4 | . 1 2 4 To Critical Strikes . | . . . . Average Slot Usage (%) 98 | . 98 99 85 Engine 13 | . 14 13 5 Treads 12 | . 11 14 11 Leg 2 | . 5 . . Wheel 12 | . 10 13 14 Device 13 | . 12 14 14 Storage 14 | . 14 14 14 Ballistic Gun 6 | . 11 1 14 Ballistic Cannon 10 | . 8 12 8 Slashing Weapon 10 | . 6 13 . Naked Turns . | . . . . Heaviest Build 94 | 12 91 94 91 Greatest Support 20 | 20 20 16 16 Greatest Overweight (x) 5 | . 5 5 5 Average Overweight (x) 4 | . 3 5 5 Largest Inventory Capacity 25 | 8 25 25 25 Average Capacity 22 | 8 20 25 25 Most Carried 25 | 8 20 25 25 Average Carried 19 | 6 13 23 24 Final Capacity 25 | 8 25 25 25 Final Carried 25 | 8 20 25 22 Class Distribution -------------------- 98% | Mutant Dominant Class ---------------- Mutant | -10/Materials Mutant | -10/Mines Mutant | -10/Subcaves Resources | -11 -10 -10 -10 ----------- Run | Yrd Mat Min Sub Matter Collected 1013 | 209 509 213 82 Remotely 82 | . . . 82 Salvage Created 1494 | 102 765 600 27 Parts 102 | 6 59 35 2 Haulers Intercepted 2 | . 2 . . Recyclers Shooed 5 | . 2 3 . Parts Field Recycled . | . . . . Retrieved Matter . | . . . . Parts Self-Destructed 3 | . . . 3 Prevented . | . . . . Kills | -11 -10 -10 -10 ------- Run | Yrd Mat Min Sub Combat Hostiles Destroyed 22 | . 13 8 1 Melee 4 | . . 4 . Guns 8 | . 6 1 1 Cannons 10 | . 7 3 . Classes Destroyed 10 | 2 6 1 1 Worker 3 | . 2 1 . Builder 6 | . 2 4 . Tunneler 1 | 1 . . . Hauler 2 | . 2 . . Recycler 9 | 1 3 5 . Mechanic 1 | . . 1 . Watcher 3 | . 3 . . Swarmer 14 | . 6 8 . Grunt 8 | . 7 1 . Subdweller 1 | . . . 1 Best Kill Streak 10 | 2 10 3 1 Combat Bots Only 9 | . 9 3 1 Max Kills in Single Turn 1 | 1 1 1 1 Gunslinging . | . . . . Exploded . | . . . . Melee 1 | . . 1 . Uniques/NPCs Destroyed . | . . . . Combat | -11 -10 -10 -10 -------- Run | Yrd Mat Min Sub Hostile Shots Fired 132 | . 48 58 26 Missed 26 | . 7 15 4 Damage Taken 1345 | . 406 359 580 Core 254 | . 41 67 146 Absorbed by Shields . | . . . . Core Remaining (%) 100 | 100 . . . Volleys Fired 113 | 3 64 35 11 Largest 2 | 2 2 1 2 Hottest 100 | 60 60 100 83 Shots Fired 170 | 6 109 35 20 Gun 102 | 6 69 14 13 Cannon 66 | . 40 19 7 Launcher . | . . . . Special 2 | . . 2 . Kinetic 152 | 3 98 33 18 Thermal 15 | . 11 2 2 Explosive . | . . . . Electromagnetic 3 | 3 . . . Robot Hit Streak 11 | 2 11 5 8 Robot Miss Streak 6 | 2 6 1 1 Penetration Max . | . . . . Secondary Targets . | . . . . Shots Hit Robots 139 | 2 62 57 18 Core Hits 53 | 2 33 16 2 Critical Kills . | . . . . Critical Parts Destroyed . | . . . . Critical Strikes 4 | . 2 1 1 Destroy 1 | . . . 1 Blast 3 | . 2 1 . Melee Attacks 54 | . 13 41 . Impact . | . . . . Slashing 54 | . 13 41 . Piercing . | . . . . Sneak Attacks 19 | . . 19 . Combat Hostiles . | . . . . Follow-up Attacks . | . . . . Damage Inflicted 2698 | 28 962 1477 231 Guns 853 | 28 556 128 141 Cannons 737 | . 406 241 90 Explosions . | . . . . Melee 1108 | . . 1108 . Ramming . | . . . . Kinetic 1471 | . 871 369 231 Thermal 91 | . 91 . . Explosive . | . . . . Electromagnetic 28 | 28 . . . Impact . | . . . . Slashing 1108 | . . 1108 . Piercing . | . . . . Highest Corruption . | . . . . Average Corruption . | . . . . Corruption Purged . | . . . . Corruption Blocked . | . . . . Overload Shots . | . . . . Overflow Damage 192 | . 4 188 . Projectiles 4 | . 4 . . Explosions . | . . . . Melee 188 | . . 188 . Knockbacks 13 | . 5 5 3 Impact . | . . . . Kinetic 11 | . 4 4 3 Secondary 2 | . 1 1 . Self-Inflicted Damage . | . . . . Shots . | . . . . Rammed . | . . . . Targets Rammed . | . . . . Kicked . | . . . . Crushed . | . . . . Highest Temperature 40 | 20 35 40 . Average Temperature 14 | 20 11 22 . Received Heat Transfer 279 | . 135 . 144 Siege Activations . | . . . . Robots Corrupted . | . . . . Combat Hostiles . | . . . . Parts Fried . | . . . . Impact Corruptions . | . . . . Robots Melted . | . . . . Combat Hostiles . | . . . . Parts Melted . | . . . . Heat Transferred 200 | . 200 . . Parts Sabotaged . | . . . . Parts Stolen . | . . . . Parts Stripped . | . . . . Power Chain Reactions . | . . . . Alert | -11 -10 -10 -10 ------- Run | Yrd Mat Min Sub Peak Influence 376 | 10 376 243 . Initial 12 | . 6 12 . Average 85 | 8 133 48 . Maximum Alert Level 1 | . 1 1 . Low Security (%) 82 | 100 67 94 . Level 1 17 | . 32 5 . Level 2 . | . . . . Level 3 . | . . . . Level 4 . | . . . . Level 5 . | . . . . High Security . | . . . . Max Security . | . . . . Squads Dispatched 4 | . 3 1 . Investigation 1 | . 1 . . Extermination . | . . . . Reinforcement 2 | . 2 . . Assault 1 | . . 1 . Garrison . | . . . . Intercept . | . . . . Searches Triggered . | . . . . Construction Impeded . | . . . . Haulers Reinforced . | . . . . Active Scanning Responses . | . . . . Cargo Convoy Interrupts . | . . . . Stealth | -11 -10 -10 -10 --------- Run | Yrd Mat Min Sub Distress Signals 2 | . 1 1 . Communications Jammed . | . . . . Distress Signals . | . . . . Times Spotted 33 | . 21 10 2 Peak Tracking Total 8 | . 8 3 2 Tactical Retreats 2 | . . 2 . Traps | -11 -10 -10 -10 ------- Run | Yrd Mat Min Sub Traps Triggered . | . . . . Indirectly . | . . . . Trap Hack Attempts . | . . . . Triggered . | . . . . Disarmed . | . . . . Reprogrammed . | . . . . Reused . | . . . . Traps Extracted . | . . . . Installed 2 | . . 2 . Triggered . | . . . . Most Traps Carried 1 | . . 1 . Machines | -11 -10 -10 -10 ---------- Run | Yrd Mat Min Sub Machines Disabled 2 | . 2 . . Max in Single Turn 1 | . 1 . . Machines Repaired . | . . . . Machines Dismantled . | . . . . Machines Sabotaged . | . . . . Overloaded Fab Kills . | . . . . Hacking | -11 -10 -10 -10 --------- Run | Yrd Mat Min Sub Machines Accessed 9 | . 8 1 . Terminals 6 | . 6 . . Fabricators . | . . . . Repair Stations . | . . . . Recycling Units 2 | . 2 . . Scanalyzers . | . . . . Garrison Access . | . . . . Total Hacks 22 | . 21 1 . Successful 9 | . 8 1 . Failed 13 | . 13 . . Catastrophic 2 | . 2 . . Database Lockouts . | . . . . Manual 13 | . 13 . . Terminals 18 | . 18 . . Fabricators . | . . . . Repair Stations . | . . . . Recycling Units 3 | . 3 . . Scanalyzers . | . . . . Garrison Access . | . . . . Terminal Hacks 7 | . 6 1 . Robot Analysis 1 | . 1 . . Prototype ID Bank 2 | . 2 . . Open Door 1 | . . 1 . Unreport Threat 1 | . 1 . . Locate Traps 1 | . 1 . . Hauler Manifests 1 | . 1 . . Fabricator Hacks . | . . . . Repair Station Hacks . | . . . . Recycling Unit Hacks . | . . . . Scanalyzer . | . . . . Garrison Access Hacks . | . . . . Unauthorized Hacks 2 | . 2 . . Terminals 1 | . 1 . . Botnet 1 | . 1 . . Fabricators . | . . . . Repair Stations . | . . . . Recycling Units 1 | . 1 . . Tunnel 1 | . 1 . . Scanalyzers . | . . . . Garrison Access . | . . . . Data Cores Recovered . | . . . . Used . | . . . . Hacking Detections 7 | . 7 . . Full Trace Events . | . . . . Feedback Events . | . . . . Feedback Blocked . | . . . . Robot Schematics Acquired . | . . . . Robots Built . | . . . . Authchips . | . . . . Time . | . . . . Total Robot Build Rating . | . . . . Part Schematics Acquired . | . . . . Parts Built . | . . . . Authchips . | . . . . Time . | . . . . Total Part Build Rating . | . . . . Parts Repaired . | . . . . Time . | . . . . Parts Recycled . | . . . . Recycled Matter . | . . . . Retrieved Matter . | . . . . Retrieved Components . | . . . . Parts Scanalyzed . | . . . . Part Schematics Acquired . | . . . . Parts Damaged . | . . . . Bothacking | -11 -10 -10 -10 ------------ Run | Yrd Mat Min Sub Used RIF Installer . | . . . . Robots Hacked . | . . . . Non-combat . | . . . . Combat . | . . . . Robot Hacks Applied . | . . . . Relay Couplers Released . | . . . . Fabnet Peak Effective % . | . . . . Robots Rewired . | . . . . Allies Hacked . | . . . . Hacks Repelled . | . . . . Allies | -11 -10 -10 -10 -------- Run | Yrd Mat Min Sub Total Allies 3 | . . 3 . Largest Group 3 | . . 3 2 Highest-Rated Group 40 | . . 40 24 Highest-Rated Ally 16 | . . 16 16 Total Orders . | . . . . Ally Attacks 7 | . . . 7 Total Damage 21 | . . . 21 Kills . | . . . . Allies Corrupted . | . . . . Allies Melted . | . . . . Intel | -11 -10 -10 -10 ------- Run | Yrd Mat Min Sub Robot Analysis Total 1 | . 1 . . Derelict Logs Recovered 1 | . . . 1 Drone Launches . | . . . . Drone Recoveries . | . . . . Exploration | -11 -10 -10 -10 ------------- Run | Yrd Mat Min Sub Turns Passed 3139 | 33 1375 1683 48 Spaces Moved 1487 | 19 642 824 2 Core . | . . . . Treads 46 | . 46 . . Legs 149 | 19 130 . . Wheels 1292 | . 466 824 2 Hover . | . . . . Flight . | . . . . Fastest Speed 120 | 120 120 175 175 Average Speed 171 | 120 169 175 175 Slowest Speed 480 | 120 480 175 175 Overloaded Moves . | . . . . Propulsion Burnouts . | . . . . Robots Hopped . | . . . . Cave-ins Triggered . | . . . . Exploration Rate (%) 47 | 3 95 90 1 Regions Visited 3 Branch Regions 2 Pre-discovered Areas 2 | . 1 . 1 Known Exits Taken . | . . . . Unknown Exits Taken 3 | 1 1 1 . Scrap Searched 1 | . . 1 . Spaces Dug 11 | . 9 2 . Terrain Destroyed 12 | . 9 3 . Melee 10 | . 9 1 . Projectile 2 | . . 2 . AOE . | . . . . Terrain Rammed . | . . . . Walls Destroyed . | . . . . Machines Disabled . | . . . . Actions | -11 -10 -10 -10 --------- Run | Yrd Mat Min Sub Total 1791 | 23 797 945 26 Wait 62 | . 39 14 9 Move 1484 | 18 641 823 2 Hop . | . . . . Pick Up 27 | 2 13 12 . Fast Attach 2 | . 2 . . Attach 8 | . 2 3 3 Detach 1 | . 1 . . Swap 24 | . 15 8 1 Drop 14 | . 7 7 . Fire 113 | 3 64 35 11 Melee 54 | . 13 41 . Ram . | . . . . Kick . | . . . . Crush . | . . . . Escape Stasis . | . . . . Rewire . | . . . . Trap 2 | . . 2 . Miscellaneous . | . . . . Route ------- -11/Scrapyard -10/Materials (discovered 4 exits: [*Mat x3] / *Min) -10/Mines (discovered 4 exits: [*Mat x2] / [*Exi] / [*Sub]) -10/Subcaves History --------- Turn | Location | Event 11 | -11/Scrapyard | Discovered new exit (range 3) 34 | -11/Scrapyard | Entered Materials 287 | -10/Materials | Destroyed 9 combat bots 639 | -10/Materials | Build established: Mutant 760 | -10/Materials | Discovered new exit (range 5) 814 | -10/Materials | Discovered new exit (range 9) 1034 | -10/Materials | Discovered new exit (range 13) 1095 | -10/Materials | Discovered new exit (range 13) 1409 | -10/Materials | Entered Mines 1473 | -10/Mines | Met a Derelict bent on vengeance 1804 | -10/Mines | Discovered new exit (range 9) 1807 | -10/Mines | Met a Derelict testing a Signal Generator 2052 | -10/Mines | Found a hidden stash of uninstalled traps 2074 | -10/Mines | Discovered new exit (range 13) 2152 | -10/Mines | Assisted by bots powering up and referring to "LRC-V3" 2239 | -10/Mines | Found the Drone Emporium 2253 | -10/Mines | Found Prototype Device 2259 | -10/Mines | Identified Thief Drone Bay 2309 | -10/Mines | Deemed a non-threat by the Exiles lab entrance 2309 | -10/Mines | Discovered new exit (range 5) 2476 | -10/Mines | A weapon hastily lodged in a ceiling crevice suddenly fell to the ground 3080 | -10/Mines | Discovered new exit (range 5) 3092 | -10/Mines | Entered Subcaves 3092 | -10/Subcaves | Accompanied by 2 allies 3093 | -10/Subcaves | Ambushed by Subdwellers from Twisted Machinery 3094 | -10/Subcaves | Learned location of Zion (-7) 3109 | -10/Subcaves | Core integrity fell below 50% 3137 | -10/Subcaves | Core integrity fell below 20% 3140 | -10/Subcaves | Destroyed by NI-FHW(R) with Subdweller Beam Cannon Last Messages --------------- 03097_ Mercenary 1a destroyed. 03107_ Trooper 1a destroyed. 03109_ Lgt. Treads destroyed. 03113_ Acquired 39 matter. 03113_ QR-NVT(R) knocked back. 03114_ Acquired 7 matter. 03116_ Lgt. Ion Engine destroyed. 03117_ Acquired 7 matter. 03119_ QR-NVT(R) knocked back. 03120_ Acquired 7 matter. 03122_ QR-NVT(R) suffers critical hit (Destroy). 03123_ Acquired 7 matter. 03125_ Destroyed Scrap Shield. 03125_ QR-NVT(R) knocked back. 03126_ Acquired 7 matter. 03128_ Lgt. Cannon destroyed. 03128_ QR-NVT(R) destroyed. 03129_ Acquired 3 matter. 03133_ Acquired 2 matter. 03134_ Hvy. Battle Rifle destroyed. Map ----- +----------------------------------------------------+ | ?????????????????????????????????????????????????? | | ?????????????????????????????????????????????????? | | ?????????????????????????????????????????????????? | | ?????????????????????????????????????????????????? | | ?????????????????????????????????????????????????? | | ?????????????????????????????????????????????????? | | ?????????????????????????????????????????????????? | | ?????????????????????????????????????????????????? | | ?????????????????????????????????????????????????? | | ?????????????????????????????????????????????????? | | ?????????????????????????????????????????????????? | | ?????????????????????????????????????????????????? | | ?????????????????????????????????????????????????? | | ?????????????????????????????????????????????????? | | ?????????????????????????????????????????????????? | | ?????????????????????????????????????????????????? | | ?????????????????????????????????????????????????? | | ????????????????## ??????????????????????????????? | | ???????????????### ??????????????????????????????? | | ???????????????### ###??????????????????????????? | | ???????????????## ####?????????????????????????? | | ???????????????### ""####???????????????????????? | | ???????????????## ""###???????????????????????? | | ???????????????## " """###?????????????????????? | | ???????????????## " ###? ?????????????????? | | ???????????????## !@## ##?????????????????? | | ???????????????## * =; ###?????????????????? | | ???????????????## [= * ##?????????????????? | | ???????????????### "" R%" """ ??????????????? | | ???????????????#### "#=& " " ?????????????? | | ????????????????############# % ##?????????????? | | ?????????????????############## ###?????????????? | | ????????????????????????????## ##?????????????? | | ???????????????????????????????? ##?????????????? | | ????????????????????????????????"###?????????????? | | ????????????????????????????????"###?????????????? | | ?????????????????????????????????????????????????? | | ?????????????????????????????????????????????????? | | ?????????????????????????????????????????????????? | | ?????????????????????????????????????????????????? | | ?????????????????????????????????????????????????? | | ?????????????????????????????????????????????????? | | ?????????????????????????????????????????????????? | | ?????????????????????????????????????????????????? | | ?????????????????????????????????????????????????? | | ?????????????????????????????????????????????????? | | ?????????????????????????????????????????????????? | | ?????????????????????????????????????????????????? | | ?????????????????????????????????????????????????? | | ?????????????????????????????????????????????????? | +----------------------------------------------------+ Best States ------------- Heat Dissipation 25 Energy Generation 10 Energy Capacity 250 Matter Stores 300 Matter Capacity 300 Sight Range 16 Terrain Scan Density 10 Evasion (%) 55 Recoil Reduction 1 Item Schematics ----------------- None Robot Schematics ------------------ None Fabricated ------------ Nothing Alien Tech Used ----------------- None Achievements -------------- None Challenges ------------ None Game ------ Seed FireTripodLattice Manual? 0 Play Time 00:26:07 Cumulative 62.8 hours Start 2024.02.27 @ 01:39:57 End 2024.02.27 @ 02:21:03 Sessions 3 Manual Loads 0 Difficulty Rogue Special Mode None Game No. 36 Rogue 36 Adventurer 0 Explorer 0 Win Type - Total 2 Types 2/0/0/0/0/0/0/0/0 Lore% 43 Gallery% 55 Achievement% 41 Wizard Run 0 Options --------- Layout 2 ASCII 0 Keyboard 1 Movement Numpad Keybinds 0 Fullscreen 2 Font 32/Tamsyn Map View 50x44 Zoom Use 0% Tactical HUD 1 Map Filters NONE Filters NONE Steam 1 RUN: 44623672-8ce1-4587-9570-9a5c55c0ba2a